bitfinex/quotes_BTCUSD_20250421
["timestamp","ask_amount","ask_price","bid_price","bid_amount"]
[1745241268137,0.09968,86812.0,86810.0,0.5703882]
[1745241269960,0.0038434,86811.0,86810.0,0.5703882]
[1745241270164,0.0048434,86811.0,86810.0,0.5703882]
[1745241271046,0.0038434,86811.0,86810.0,0.5703882]
[1745241275677,0.0955434,86811.0,86810.0,0.5703882]
[1745241275891,0.0955434,86811.0,86810.0,0.2303882]
[1745241276309,0.10254287,86811.0,86810.0,0.2303882]
[1745241276536,0.0955434,86811.0,86810.0,0.2303882]
[1745241277403,0.21499131,86811.0,86810.0,0.2303882]
[1745241277813,0.22199078,86811.0,86810.0,0.2303882]
[1745241277990,0.22199078,86811.0,86810.0,0.5703882]
[1745241284600,0.32167078,86811.0,86810.0,0.5703882]
[1745241294483,0.11052287,86811.0,86810.0,0.5703882]
[1745241294693,0.01084287,86811.0,86810.0,0.5703882]
[1745241298496,0.0038434,86811.0,86810.0,0.5703882]
[1745241302754,0.0018434,86811.0,86810.0,0.5703882]
[1745241303165,0.0028434,86811.0,86810.0,0.5703882]
[1745241303508,0.0018434,86811.0,86810.0,0.5703882]
[1745241305948,0.0008434,86819.0,86818.0,0.57036697]
[1745241306278,1e-08,86819.0,86818.0,0.57036697]
[1745241307326,1e-08,86819.0,86817.0,0.34]
[1745241307536,1e-08,86819.0,86818.0,0.23036697]
[1745241307750,1e-08,86819.0,86818.0,0.23267019]
[1745241308156,1e-08,86819.0,86818.0,0.23036697]
[1745241308282,1e-08,86819.0,86818.0,0.23267019]
[1745241308487,0.00080361,86824.0,86823.0,0.5703537]
[1745241308692,0.00125681,86824.0,86823.0,0.5703537]
[1745241309691,0.00125681,86824.0,86823.0,0.6173537]
[1745241309918,0.00463421,86832.0,86830.0,0.23033513]
[1745241310132,0.09876,86835.0,86830.0,0.23033513]
[1745241310133,0.09876,86835.0,86833.0,0.57032717]
[1745241310336,0.00095781,86834.0,86833.0,0.57032717]
[1745241311380,0.00195781,86834.0,86833.0,0.57032717]
[1745241312020,0.0008434,86849.0,86845.0,0.57029535]
[1745241312444,0.00826793,86846.0,86845.0,0.57029535]
[1745241312667,0.0008432,86846.0,86845.0,0.57029535]
[1745241312868,0.00826793,86846.0,86845.0,0.57029535]
[1745241313075,0.0008432,86846.0,86845.0,0.57029535]
[1745241313278,0.00826793,86846.0,86845.0,0.57029535]
[1745241313491,0.0008432,86846.0,86845.0,0.57029535]
[1745241313693,0.00826793,86846.0,86845.0,0.57029535]
[1745241313919,0.0008432,86846.0,86845.0,0.57029535]
[1745241314104,0.00826793,86846.0,86845.0,0.57029535]
[1745241314314,0.0008432,86846.0,86845.0,0.57029535]
[1745241314522,0.12771584,86846.0,86845.0,0.57029535]
[1745241314728,0.12129111,86846.0,86845.0,0.57029535]
[1745241314927,0.1264281,86846.0,86845.0,0.57029535]
[1745241316429,0.00698019,86846.0,86845.0,0.57029535]
[1745241317034,0.1264281,86846.0,86845.0,0.57029535]
[1745241318824,0.00698019,86846.0,86845.0,0.57029535]
[1745241319487,0.00698019,86846.0,86845.0,0.33297344]
[1745241319807,0.00698019,86846.0,86845.0,0.56326879]
[1745241321566,0.0018432,86846.0,86845.0,0.56326879]
[1745241321904,0.01151569,86838.0,86833.0,0.23032568]
[1745241322115,0.0473,86843.0,86842.0,0.34]
[1745241322321,0.16674791,86843.0,86842.0,0.34]
[1745241322709,0.17189113,86843.0,86842.0,0.34]
[1745241323256,0.17289113,86843.0,86842.0,0.34]
[1745241323484,0.17189113,86843.0,86842.0,0.34]
[1745241323901,0.17289113,86843.0,86842.0,0.34]
[1745241324563,0.17489113,86843.0,86842.0,0.34]
[1745241326503,0.00814322,86843.0,86842.0,0.34]
[1745241326759,0.003,86843.0,86842.0,0.34]
[1745241327182,0.0018432,86846.0,86845.0,0.57029535]
[1745241328218,0.0028432,86846.0,86845.0,0.57029535]
[1745241331007,0.0018432,86846.0,86845.0,0.57029535]
[1745241340754,0.0018432,86846.0,86844.0,0.34]
[1745241340949,0.0018432,86846.0,86845.0,0.57029535]
[1745241341724,0.0008432,86846.0,86845.0,0.57029535]
[1745241343115,0.0018432,86846.0,86845.0,0.57029535]
[1745241343534,0.0008432,86846.0,86845.0,0.57029535]
[1745241343945,0.0018432,86846.0,86845.0,0.57029535]
[1745241346004,0.000843,86854.0,86853.0,0.57027414]
[1745241347148,0.0008434,86863.0,86858.0,0.57026088]
[1745241349055,0.0008434,86863.0,86856.0,0.24177689]
[1745241349056,0.17274791,86859.0,86856.0,0.24177689]
[1745241349247,0.0533,86859.0,86858.0,0.23026088]
[1745241349494,0.17274791,86859.0,86858.0,0.23026088]
[1745241350862,0.21874791,86859.0,86857.0,0.23026188]
[1745241351081,0.11944791,86858.0,86857.0,0.23026188]
[1745241351224,0.1197473,86858.0,86857.0,0.23026188]
[1745241352415,0.11944791,86858.0,86857.0,0.23026188]
[1745241353314,0.12144791,86858.0,86857.0,0.23026188]
[1745241353941,0.22064791,86858.0,86857.0,0.23026188]
[1745241354435,0.2209473,86858.0,86857.0,0.23026188]
[1745241354747,0.22064791,86858.0,86857.0,0.23026188]
[1745241355308,0.12144791,86858.0,86857.0,0.23026188]
[1745241356477,0.12044791,86858.0,86857.0,0.23026188]
[1745241356871,0.11944791,86858.0,86857.0,0.23026188]
[1745241357267,0.12144791,86858.0,86857.0,0.23026188]
[1745241357607,0.12144791,86858.0,86856.0,0.22623752]
[1745241357808,0.12144791,86858.0,86857.0,0.23026188]
[1745241358519,0.002,86858.0,86857.0,0.57026188]
[1745241358895,0.001,86858.0,86857.0,0.57026188]
[1745241359127,0.002,86858.0,86857.0,0.57026188]
[1745241359322,0.12044791,86858.0,86857.0,0.57026188]
[1745241359847,0.12144791,86858.0,86857.0,0.57026188]
[1745241360300,0.11944791,86858.0,86857.0,0.57026188]
[1745241360831,0.12044791,86858.0,86857.0,0.57026188]
[1745241367130,0.12044791,86858.0,86857.0,0.34]
[1745241367557,0.12044791,86858.0,86857.0,0.57026188]
[1745241367803,0.17004791,86858.0,86857.0,0.57026188]
[1745241370726,0.17674236,86858.0,86857.0,0.57026188]
[1745241372520,0.23485479,86858.0,86854.0,0.34]
[1745241372770,0.23485479,86858.0,86845.0,0.01151476]
[1745241372771,0.0115141,86850.0,86845.0,0.01151476]
[1745241372982,0.17596769,86849.0,86843.0,0.24181368]
[1745241373188,0.17596769,86849.0,86847.0,0.23028954]
[1745241373388,0.00029939,86848.0,86847.0,0.23028954]
[1745241373643,0.22520381,86848.0,86847.0,0.23028954]
[1745241373960,0.22520381,86848.0,86846.0,0.01151463]
[1745241374153,0.1197473,86847.0,86846.0,0.24180561]
[1745241374585,0.12629512,86847.0,86846.0,0.24180561]
[1745241375411,0.12629512,86847.0,86844.0,0.0115149]
[1745241375617,0.12729512,86847.0,86844.0,0.24181107]
[1745241375970,0.12729512,86847.0,86844.0,0.0115149]
[1745241376178,0.12629512,86847.0,86845.0,0.23029535]
[1745241376443,0.12729512,86847.0,86845.0,0.23029535]
[1745241376642,0.12629512,86847.0,86845.0,0.23029535]
[1745241378000,0.1197473,86847.0,86845.0,0.23029535]
[1745241378203,0.1207473,86847.0,86845.0,0.23029535]
[1745241379952,0.1217473,86847.0,86845.0,0.23029535]
[1745241384852,0.12144791,86847.0,86845.0,0.23029535]
[1745241385083,0.00029939,86846.0,86845.0,0.23029535]
[1745241385345,0.1197473,86846.0,86845.0,0.23029535]
[1745241387100,0.1207473,86846.0,86845.0,0.23029535]
[1745241387251,0.1217473,86846.0,86845.0,0.23029535]
[1745241387659,0.12144791,86846.0,86845.0,0.57029535]
[1745241387880,0.002,86846.0,86845.0,0.57029535]
[1745241388677,0.001,86846.0,86845.0,0.57029535]
[1745241388932,0.001,86846.0,86845.0,0.57129535]
[1745241389196,0.001,86846.0,86845.0,0.001]
[1745241389432,0.001,86846.0,86845.0,0.23129535]
[1745241389639,0.09944,86850.0,86849.0,0.23028474]
[1745241389854,0.21888791,86850.0,86849.0,0.23028474]
[1745241392451,0.11944791,86850.0,86849.0,0.23028474]
[1745241392675,0.21888791,86850.0,86849.0,0.23028474]
[1745241392906,0.2192273,86850.0,86849.0,0.23028474]
[1745241393130,0.225735,86850.0,86849.0,0.23028474]
[1745241395853,0.22543561,86850.0,86849.0,0.23028474]
[1745241397428,0.22543561,86850.0,86849.0,0.57028474]
[1745241400322,0.12599561,86850.0,86849.0,0.57028474]
[1745241400543,0.22543561,86850.0,86849.0,0.57028474]
[1745241400742,0.21892791,86850.0,86849.0,0.57028474]
[1745241400949,0.22549548,86850.0,86849.0,0.57028474]
[1745241401519,0.10604757,86850.0,86849.0,0.57028474]
[1745241401724,0.09948,86850.0,86849.0,0.57028474]
[1745241402520,4e-05,86850.0,86849.0,0.57028474]
[1745241421419,0.11948791,86850.0,86849.0,0.23028474]
[1745241421870,0.12608079,86850.0,86849.0,0.57028474]
[1745241422285,0.11948791,86850.0,86849.0,0.57028474]
[1745241432791,0.12607761,86850.0,86849.0,0.57028474]
[1745241437604,0.12607761,86850.0,86849.0,0.0504907]
[1745241438143,0.17247761,86850.0,86849.0,0.0504907]
[1745241439366,0.17251761,86850.0,86849.0,0.0504907]
[1745241439573,0.17351761,86850.0,86849.0,0.0504907]
[1745241439808,0.17451761,86850.0,86849.0,0.0504907]
[1745241440020,0.17351761,86850.0,86849.0,0.0504907]
[1745241441611,0.5890293,86850.0,86849.0,0.0504907]
[1745241444302,0.5890293,86850.0,86847.0,0.23029005]
[1745241444658,0.1197473,86849.0,86848.0,0.23028739]
[1745241445044,0.12632892,86849.0,86848.0,0.23028739]
[1745241446017,0.12732892,86849.0,86848.0,0.23028739]
[1745241446425,0.12832892,86849.0,86848.0,0.23028739]
[1745241447323,0.54284061,86849.0,86848.0,0.23028739]
[1745241447523,0.54254122,86849.0,86848.0,0.23028739]
[1745241454811,0.64082122,86849.0,86848.0,0.23028739]
[1745241458593,0.64082122,86849.0,86847.0,0.24180455]
[1745241458790,0.00029939,86848.0,86847.0,0.24180455]
[1745241459004,0.12628575,86848.0,86847.0,0.24180455]
[1745241460244,0.12728575,86848.0,86847.0,0.24180455]
[1745241461445,0.12828575,86848.0,86847.0,0.24180455]
[1745241461650,0.12828575,86848.0,86847.0,0.0115145]
[1745241461900,0.12828575,86848.0,86844.0,0.24181144]
[1745241462133,0.11944791,86847.0,86845.0,0.24180828]
[1745241462377,0.00029939,86846.0,86845.0,0.24180828]
[1745241462648,0.12622368,86846.0,86845.0,0.24180828]
[1745241464221,0.22450368,86846.0,86845.0,0.24180828]
[1745241464653,0.22550368,86846.0,86845.0,0.24180828]
[1745241465139,0.64001537,86846.0,86845.0,0.24180828]
[1745241465368,0.63971598,86846.0,86845.0,0.24180828]
[1745241466569,0.01151503,86843.0,86839.0,0.01151556]
[1745241466795,0.63971598,86846.0,86841.0,0.24182077]
[1745241466796,0.1197473,86842.0,86841.0,0.24182077]
[1745241467028,0.11944791,86842.0,86841.0,0.24182077]
[1745241468354,0.11944791,86842.0,86841.0,0.58182077]
[1745241468567,0.12044791,86842.0,86841.0,0.58182077]
[1745241469167,0.12144791,86842.0,86841.0,0.58182077]
[1745241469308,0.11944791,86842.0,86841.0,0.58182077]
[1745241471215,0.11944791,86842.0,86841.0,0.58282077]
[1745241492694,0.11948791,86842.0,86841.0,0.58282077]
[1745241500264,4e-05,86842.0,86841.0,0.58282077]
[1745241503988,0.11948791,86842.0,86841.0,0.58282077]
[1745241511348,0.1197873,86842.0,86841.0,0.58282077]
[1745241512848,0.1197873,86842.0,86841.0,0.58182077]
[1745241514642,0.21776791,86842.0,86841.0,0.58182077]
[1745241518845,0.21776791,86842.0,86840.0,0.34]
[1745241519052,0.11944791,86841.0,86840.0,0.34]
[1745241519842,0.1197473,86841.0,86840.0,0.34]
[1745241520950,0.11944791,86841.0,86840.0,0.34]
[1745241522297,0.1197473,86841.0,86840.0,0.34]
[1745241522541,0.11944791,86841.0,86840.0,0.34]
[1745241523165,0.1197473,86841.0,86840.0,0.34]
[1745241523508,0.11944791,86841.0,86840.0,0.34]
[1745241527150,0.1693473,86841.0,86840.0,0.34]
[1745241527366,0.1693473,86841.0,86839.0,0.24182682]
[1745241527571,0.58385899,86841.0,86839.0,0.24182682]
[1745241527799,0.5835596,86841.0,86839.0,0.24182682]
[1745241527993,0.00029939,86840.0,86839.0,0.24182682]
[1745241528214,0.1197473,86840.0,86839.0,0.24182682]
[1745241529378,0.1207473,86840.0,86839.0,0.24182682]
[1745241529791,0.1217473,86840.0,86839.0,0.24182682]
[1745241532388,0.53625899,86840.0,86839.0,0.24182682]
[1745241532591,0.5359596,86840.0,86839.0,0.24182682]
[1745241535952,0.5359596,86840.0,86839.0,0.24182682]
[1745241539211,0.5359596,86840.0,86838.0,0.24182694]
[1745241539449,0.1197473,86839.0,86838.0,0.24182694]
[1745241540050,0.2179873,86839.0,86838.0,0.24182694]
[1745241542043,0.2189873,86839.0,86838.0,0.24182694]
[1745241542815,0.2199873,86839.0,86838.0,0.24182694]
[1745241544139,0.63449899,86839.0,86838.0,0.24182694]
[1745241544277,0.6341996,86839.0,86838.0,0.24182694]
[1745241552385,0.5359596,86839.0,86838.0,0.24182694]
[1745241552586,0.6341996,86839.0,86838.0,0.24182694]
[1745241563510,0.5359596,86839.0,86838.0,0.24182694]
[1745241563710,0.6341996,86839.0,86838.0,0.24182694]
[1745241568558,0.5359596,86839.0,86838.0,0.24182694]
[1745241569720,0.5349596,86839.0,86838.0,0.24182694]
[1745241569933,0.5339596,86839.0,86838.0,0.24182694]
[1745241575698,0.5339596,86839.0,86837.0,0.23031125]
[1745241576230,0.5339596,86839.0,86838.0,0.23031125]
[1745241576649,0.5339596,86839.0,86838.0,0.24182694]
[1745241584254,0.5339596,86839.0,86838.0,0.58182694]
[1745241586983,0.41451169,86839.0,86838.0,0.58182694]
[1745241588881,0.41451169,86839.0,86838.0,0.58282694]
[1745241589028,0.41451169,86839.0,86838.0,0.35251569]
[1745241589211,0.41451169,86839.0,86838.0,0.58282694]
[1745241591059,4e-05,86842.0,86841.0,0.23030596]
[1745241591258,0.11948791,86842.0,86841.0,0.23030596]
[1745241592395,0.11948791,86842.0,86841.0,0.23130596]
[1745241593346,0.11948791,86842.0,86841.0,0.05675379]
[1745241597419,0.1197873,86842.0,86841.0,0.05675379]
[1745241597627,0.11948791,86842.0,86841.0,0.05675379]
[1745241603884,4e-05,86842.0,86841.0,0.05675379]
[1745241604097,0.09816,86853.0,86852.0,0.57027679]
[1745241604300,0.004,86859.0,86858.0,0.57026088]
[1745241604497,0.12344791,86859.0,86858.0,0.57026088]
[1745241605380,0.12349319,86859.0,86858.0,0.57026088]
[1745241605547,0.12549319,86859.0,86858.0,0.57026088]
[1745241605758,0.12349319,86859.0,86858.0,0.57026088]
[1745241606126,0.12549319,86859.0,86858.0,0.57026088]
[1745241616337,0.00604528,86859.0,86858.0,0.57026088]
[1745241617154,0.00504528,86859.0,86858.0,0.57026088]
[1745241617532,0.00604528,86859.0,86858.0,0.57026088]
[1745241617955,0.00404528,86859.0,86858.0,0.57026088]
[1745241618281,0.00504528,86859.0,86858.0,0.57026088]
[1745241618481,0.00404528,86859.0,86858.0,0.57026088]
[1745241624531,1e-08,86863.0,86862.0,0.57025028]
[1745241626718,1e-08,86863.0,86862.0,0.57125028]
[1745241627039,1e-08,86863.0,86862.0,0.61835028]
[1745241627239,1e-08,86863.0,86862.0,0.57125028]
[1745241628071,1e-08,86863.0,86862.0,0.57225028]
[1745241629931,1e-08,86863.0,86862.0,0.57125028]
[1745241630220,1e-08,86863.0,86862.0,0.57225028]
[1745241630619,1e-08,86863.0,86862.0,0.57125028]
[1745241630846,1e-08,86863.0,86862.0,0.57025028]
[1745241631006,1e-08,86863.0,86862.0,0.57125028]
[1745241638582,1e-08,86863.0,86862.0,0.57025028]
[1745241642398,0.05721251,86862.0,86851.0,0.23027853]
[1745241642596,0.0474,86860.0,86857.0,0.01151317]
[1745241642803,0.1671473,86859.0,86857.0,0.01151317]
[1745241643125,0.1671473,86859.0,86850.0,4.528e-05]
[1745241643126,0.23027931,86852.0,86850.0,4.528e-05]
[1745241643271,0.2128473,86851.0,86850.0,4.528e-05]
[1745241643476,0.22738815,86851.0,86850.0,4.528e-05]
[1745241643660,0.23566003,86851.0,86850.0,4.528e-05]
[1745241643867,0.77474898,86851.0,86850.0,4.528e-05]
[1745241644064,0.77444959,86851.0,86850.0,4.528e-05]
[1745241644521,0.01151675,86830.0,86824.0,0.0004219]
[1745241644672,0.23034775,86826.0,86824.0,0.00053671]
[1745241644895,0.54522464,86825.0,86824.0,0.00053671]
[1745241645155,0.5594661,86825.0,86824.0,0.00053671]
[1745241645713,0.5594661,86825.0,86824.0,0.00153671]
[1745241646117,0.6051661,86825.0,86824.0,0.00053671]
[1745241646354,0.6061661,86825.0,86824.0,0.00053671]
[1745241646675,0.7751661,86825.0,86824.0,0.00053671]
[1745241647581,0.7761661,86825.0,86824.0,0.00053671]
[1745241648541,0.8722861,86825.0,86824.0,0.00053671]
[1745241648744,0.71422525,86825.0,86824.0,0.00053671]
[1745241648946,0.59764525,86825.0,86824.0,0.34053671]
[1745241649136,0.10610839,86825.0,86824.0,0.34053671]
[1745241649341,0.01198839,86825.0,86824.0,0.34053671]
[1745241649534,0.004,86825.0,86824.0,0.34053671]
[1745241649957,0.002,86825.0,86824.0,0.34053671]
[1745241650090,0.004,86825.0,86824.0,0.34053671]
[1745241650628,0.004,86825.0,86823.0,0.23035335]
[1745241650629,0.002,86825.0,86823.0,0.23035335]
[1745241650828,0.00204524,86825.0,86823.0,0.23035335]
[1745241651440,4.524e-05,86825.0,86822.0,0.23035636]
[1745241651641,4.524e-05,86825.0,86823.0,0.23035335]
[1745241652617,0.11944791,86824.0,86823.0,0.23035335]
[1745241653270,0.11944791,86824.0,86823.0,0.23135335]
[1745241654096,0.11944791,86824.0,86823.0,0.57135335]
[1745241654911,0.11944791,86824.0,86823.0,0.57035335]
[1745241655343,0.11944791,86824.0,86823.0,0.57135335]
[1745241655579,0.11944791,86824.0,86823.0,0.341]
[1745241655987,0.11944791,86824.0,86823.0,0.34]
[1745241658584,0.12704064,86824.0,86823.0,0.34]
[1745241661124,0.35739169,86824.0,86823.0,0.34]
[1745241661330,0.35739169,86824.0,86813.0,0.0004218]
[1745241661331,0.23036697,86818.0,86813.0,0.0004218]
[1745241661540,0.1197473,86817.0,86813.0,0.0004218]
[1745241661743,0.1197473,86817.0,86813.0,0.2308018]
[1745241661950,0.12730143,86817.0,86813.0,0.2308018]
[1745241662479,0.23037228,86816.0,86813.0,0.0004218]
[1745241662648,0.11944791,86816.0,86815.0,0.001422]
[1745241662827,0.12699672,86816.0,86815.0,0.001422]
[1745241663049,0.12699672,86816.0,86815.0,0.000422]
[1745241664609,0.14153757,86816.0,86815.0,0.000422]
[1745241664814,0.14253757,86816.0,86815.0,0.000422]
[1745241665550,0.19343696,86816.0,86815.0,0.000422]
[1745241666325,0.56352591,86816.0,86815.0,0.000422]
[1745241666528,0.56322652,86816.0,86815.0,0.000422]
[1745241666966,0.56222652,86816.0,86815.0,0.000422]
[1745241667166,0.65934652,86816.0,86815.0,0.000422]
[1745241667480,0.66634652,86816.0,86815.0,0.000422]
[1745241668149,0.66634652,86816.0,86806.0,0.000422]
[1745241668150,0.23039616,86807.0,86806.0,0.000422]
[1745241668340,0.83137326,86807.0,86806.0,0.000422]
[1745241668538,0.83905614,86807.0,86806.0,0.000422]
[1745241668954,0.88585614,86807.0,86806.0,0.000422]
[1745241669517,0.92445799,86807.0,86806.0,0.000422]
[1745241669802,0.92445799,86807.0,86788.0,0.000422]
[1745241669803,0.16454085,86791.0,86788.0,0.000422]
[1745241670009,0.82844678,86791.0,86788.0,0.000422]
[1745241670158,0.83594098,86791.0,86788.0,0.000422]
[1745241670581,0.01454085,86790.0,86778.0,0.01197233]
[1745241670761,0.39502994,86772.0,86755.0,0.01152671]
[1745241670959,0.9826868,86772.0,86756.0,0.01152658]
[1745241671164,0.97578023,86772.0,86771.0,0.0044532]
[1745241671782,0.99032108,86772.0,86771.0,0.0044532]
[1745241671989,0.01152777,86747.0,86742.0,0.01152844]
[1745241672194,0.2168673,86746.0,86743.0,0.00719532]
[1745241672390,0.22333102,86746.0,86744.0,0.23056128]
[1745241672828,0.22333102,86746.0,86745.0,0.34]
[1745241673025,0.22333102,86746.0,86745.0,0.00719532]
[1745241673426,0.02606889,86745.0,86742.0,0.003]
[1745241673625,0.02606889,86745.0,86741.0,0.01626057]
[1745241673626,0.35001406,86743.0,86741.0,0.01626057]
[1745241673962,0.00740508,86742.0,86741.0,0.01626057]
[1745241674104,0.12685299,86742.0,86741.0,0.01626057]
[1745241674710,0.22501299,86742.0,86741.0,0.01626057]
[1745241674951,0.22301299,86742.0,86741.0,0.01626057]
[1745241675159,0.22467966,86742.0,86741.0,0.01626057]
[1745241675505,0.12651966,86742.0,86741.0,0.01626057]
[1745241675688,0.00707175,86742.0,86741.0,0.3894394]
[1745241676128,0.09816,86748.0,86745.0,0.01152804]
[1745241676472,0.09816,86748.0,86746.0,0.00719515]
[1745241676682,0.09816,86748.0,86747.0,0.34]
[1745241677087,0.21760791,86748.0,86747.0,0.34719515]
[1745241677673,0.21860791,86748.0,86747.0,0.34719515]
[1745241678834,0.21760791,86748.0,86747.0,0.34719515]
[1745241679152,0.21860791,86748.0,86747.0,0.34819515]
[1745241679499,0.21860791,86748.0,86747.0,0.34919515]
[1745241680514,0.09916,86748.0,86747.0,0.34919515]
[1745241680721,0.001,86748.0,86747.0,0.34919515]
[1745241680925,0.37968,86765.0,86764.0,0.57051034]
[1745241681307,0.00523843,86765.0,86764.0,0.57051034]
[1745241681929,0.09816,86773.0,86772.0,0.57048909]
[1745241682135,0.21760791,86773.0,86772.0,0.57048909]
[1745241682331,0.21760791,86773.0,86772.0,0.57768424]
[1745241682644,0.2229059,86773.0,86772.0,0.57768424]
[1745241683230,0.2229059,86773.0,86772.0,0.57782025]
[1745241683440,0.2239059,86773.0,86772.0,0.57782025]
[1745241683642,0.2239059,86773.0,86772.0,0.57882025]
[1745241684550,0.2239059,86773.0,86772.0,0.34833116]
[1745241685397,0.38844675,86773.0,86772.0,0.00833116]
[1745241685626,0.48234675,86773.0,86772.0,0.00833116]
[1745241685994,0.8524357,86773.0,86772.0,0.00833116]
[1745241687002,0.8524357,86773.0,86772.0,0.00733116]
[1745241687212,0.8554357,86773.0,86772.0,0.00833116]
[1745241687420,0.01152618,86759.0,86756.0,0.01152658]
[1745241687632,0.12470448,86758.0,86754.0,0.58206118]
[1745241687862,0.12470448,86758.0,86755.0,0.01152671]
[1745241688223,0.13623079,86758.0,86755.0,0.01152671]
[1745241688454,0.01152644,86757.0,86754.0,0.34]
[1745241688663,0.12469235,86756.0,86753.0,0.01158446]
[1745241689262,0.12469235,86756.0,86755.0,0.23053426]
[1745241689540,0.12369235,86756.0,86754.0,0.34]
[1745241691204,0.12369235,86756.0,86754.0,0.341]
[1745241691840,0.12369235,86756.0,86755.0,0.23053426]
[1745241692351,0.00524444,86756.0,86755.0,0.23053426]
[1745241692775,0.37008895,86760.0,86759.0,0.57052363]
[1745241694040,0.37108895,86760.0,86759.0,0.57152363]
[1745241695860,0.37008895,86760.0,86759.0,0.57152363]
[1745241696223,0.37108895,86760.0,86759.0,0.57352363]
[1745241696755,0.001,86760.0,86759.0,0.57352363]
[1745241699832,0.001,86760.0,86759.0,0.58071686]
[1745241702354,0.001,86760.0,86759.0,0.57971686]
[1745241702741,1e-08,86760.0,86759.0,0.57971686]
[1745241702946,1e-08,86760.0,86759.0,0.58071686]
[1745241703150,0.37008895,86796.0,86792.0,0.57043598]
[1745241703312,0.37008895,86796.0,86794.0,0.23043067]
[1745241703473,0.71845271,86795.0,86794.0,0.23043067]
[1745241703676,0.71845271,86795.0,86794.0,0.2376239]
[1745241703901,0.71845271,86795.0,86794.0,0.24977591]
[1745241704371,0.72045271,86795.0,86794.0,0.24977591]
[1745241704580,0.72058847,86795.0,86794.0,0.24977591]
[1745241704763,0.71858847,86795.0,86794.0,0.24977591]
[1745241706116,0.72158847,86795.0,86794.0,0.24977591]
[1745241706561,0.72458847,86795.0,86794.0,0.25077591]
[1745241709673,0.72458847,86795.0,86794.0,0.02034524]
[1745241710124,0.96955734,86795.0,86794.0,0.02034524]
[1745241710738,0.96955734,86795.0,86794.0,0.01315201]
[1745241711158,0.74012932,86795.0,86794.0,0.01315201]
[1745241711534,0.74012932,86795.0,86794.0,0.001]
[1745241713500,0.78512932,86795.0,86794.0,0.001]
[1745241714088,1.15521827,86795.0,86794.0,0.001]
[1745241715008,0.01454085,86786.0,86784.0,0.08713482]
[1745241715251,0.13398876,86785.0,86784.0,0.08713482]
[1745241715664,0.13398876,86785.0,86784.0,0.09432815]
[1745241716317,0.13398876,86785.0,86784.0,0.09532815]
[1745241716658,0.13398876,86785.0,86784.0,0.09432815]
[1745241716856,0.13398876,86785.0,86784.0,0.10642785]
[1745241717146,0.13598876,86785.0,86784.0,0.10742785]
[1745241717321,0.13798876,86785.0,86784.0,0.10742785]
[1745241718806,0.23610876,86785.0,86784.0,0.10742785]
[1745241719015,0.22156791,86785.0,86784.0,0.44742785]
[1745241719224,0.22156791,86785.0,86784.0,0.44742709]
[1745241723868,0.004,86785.0,86784.0,0.44742709]
[1745241724096,0.0568189,86789.0,86788.0,0.5704466]
[1745241724291,0.17626681,86789.0,86788.0,0.5704466]
[1745241724513,0.17626681,86789.0,86788.0,0.57763917]
[1745241724724,0.17626681,86789.0,86788.0,0.57763821]
[1745241724947,0.17626681,86789.0,86788.0,0.57763832]
[1745241725758,0.17826681,86789.0,86788.0,0.57863832]
[1745241726298,0.17626681,86789.0,86788.0,0.57763832]
[1745241726531,0.17826681,86789.0,86788.0,0.57763832]
[1745241726735,0.12144791,86789.0,86788.0,0.57763832]
[1745241726909,0.09812,86794.0,86788.0,0.57763832]
[1745241727108,0.09812,86794.0,86793.0,0.57043332]
[1745241727487,0.50198056,86795.0,86794.0,0.34]
[1745241727964,0.50198056,86795.0,86794.0,0.34719172]
[1745241728154,0.4444479,86795.0,86794.0,0.39479172]
[1745241728394,0.37984,86801.0,86798.0,0.011521]
[1745241728654,0.09812,86806.0,86805.0,0.57040147]
[1745241729004,0.09812,86806.0,86805.0,0.57759319]
[1745241729406,0.000845,86808.0,86807.0,0.57039616]
[1745241729569,0.000845,86808.0,86807.0,0.57758788]
[1745241730799,0.12029291,86808.0,86807.0,0.57758788]
[1745241731199,0.12029291,86808.0,86807.0,0.34819172]
[1745241731816,0.21837291,86808.0,86807.0,0.34819172]
[1745241734368,0.21837291,86808.0,86807.0,0.00819172]
[1745241736737,0.21837291,86808.0,86807.0,0.001]
[1745241738183,0.21837291,86808.0,86806.0,0.2303986]
[1745241738322,0.098925,86808.0,86807.0,0.001]
[1745241738523,0.21837291,86808.0,86807.0,0.001]
[1745241738825,0.21837291,86808.0,86806.0,0.2303986]
[1745241739172,0.11944791,86807.0,86806.0,0.2303986]
[1745241739562,0.11944791,86807.0,86751.0,0.05729522]
[1745241739563,0.11944791,86807.0,86802.0,0.01152047]
[1745241739943,0.11944791,86807.0,86804.0,0.0115202]
[1745241740709,0.13398876,86805.0,86802.0,0.01152047]
[1745241740918,0.11944791,86804.0,86802.0,0.01152047]
[1745241741138,0.11944791,86804.0,86803.0,0.00719136]
[1745241741960,0.12044791,86804.0,86803.0,0.00719136]
[1745241742167,0.12144791,86804.0,86803.0,0.00719136]
[1745241742547,0.12044791,86804.0,86803.0,0.23759814]
[1745241744429,0.12144791,86804.0,86803.0,0.23759814]
[1745241745987,0.12044791,86804.0,86803.0,0.23759814]
[1745241746595,0.11944791,86804.0,86803.0,0.23759814]
[1745241746796,0.12044791,86804.0,86803.0,0.23759814]
[1745241747614,0.12144791,86804.0,86803.0,0.23759814]
[1745241747987,0.12144791,86804.0,86803.0,0.57759814]
[1745241748237,0.002,86804.0,86803.0,0.57759814]
[1745241749553,0.098925,86808.0,86807.0,0.57039616]
[1745241750408,0.098925,86808.0,86807.0,0.57758752]
[1745241750916,0.098925,86808.0,86807.0,0.57858752]
[1745241751211,0.092405,86808.0,86807.0,0.57858752]
[1745241751487,0.092405,86808.0,86807.0,0.57958752]
[1745241752589,0.092405,86808.0,86807.0,0.57858752]
[1745241752710,0.169,86822.0,86821.0,0.57035901]
[1745241752911,0.38666387,86822.0,86821.0,0.57035901]
[1745241753155,0.39312959,86822.0,86821.0,0.57755037]
[1745241753779,0.39612959,86822.0,86821.0,0.57755037]
[1745241754215,0.39712959,86822.0,86821.0,0.57755037]
[1745241755979,0.39716959,86822.0,86821.0,0.57755037]
[1745241757378,0.10872168,86822.0,86821.0,0.57755037]
[1745241757604,0.10225596,86822.0,86821.0,0.57755037]
[1745241758257,0.00417596,86822.0,86821.0,0.57755037]
[1745241758485,0.00317596,86822.0,86821.0,0.57755037]
[1745241759088,0.00017596,86822.0,86821.0,0.57755037]
[1745241759497,0.00217596,86822.0,86821.0,0.57755037]
[1745241759874,0.00017596,86822.0,86821.0,0.57755037]
[1745241760315,0.00217596,86822.0,86821.0,0.57755037]
[1745241760521,0.004,86829.0,86828.0,0.23034044]
[1745241760720,0.0008446,86839.0,86838.0,0.57031391]
[1745241760976,0.12074562,86839.0,86838.0,0.57750527]
[1745241762213,0.00229771,86839.0,86838.0,0.57850527]
[1745241762413,0.00129771,86839.0,86838.0,0.57850527]